lending/lending_fUSD_20251111
["ID","MTS","AMOUNT","RATE_DAILY","PERIOD"]
[393666141,1762895443382,-150.0,0.00039679,2]
[393666142,1762895443391,-150.0,0.00039679,2]
[393666143,1762895443401,-150.0,0.00039679,2]
[393666144,1762895443411,-150.0,0.00039679,2]
[393666145,1762895443421,-150.0,0.00039679,2]
[393666146,1762895443431,-150.0,0.00039679,2]
[393666147,1762895443440,-153.0,0.00039682,120]
[393666148,1762895443450,-153.0,0.00039682,120]
[393666149,1762895443460,-153.0,0.00039683,120]
[393666150,1762895443469,-300.0,0.00039684,2]
[393666151,1762895443479,-300.0,0.00039696,2]
[393666152,1762895443488,-1500.0,0.000397,14]
[393666153,1762895443498,-300.0,0.00039715,2]
[393666154,1762895443508,-1000.0,0.00039716,5]
[393666155,1762895443517,-300.0,0.00039721,2]
[393666156,1762895443526,-158.72,0.00039726,2]
[393666157,1762895443535,-150.0,0.00039726,2]
[393666158,1762895443545,-150.0,0.00039726,2]
[393666159,1762895443554,-2500.0,0.0003973,14]
[393666160,1762895443563,-394.1854807,0.00039735,12]
[393666161,1762895443572,-2500.0,0.00039739,14]
[393666162,1762895443582,-300.0,0.00039743,2]
[393666163,1762895443591,-151.0,0.00039744,14]
[393666164,1762895443601,-2500.0,0.00039747,14]
[393666165,1762895443610,-2500.0,0.00039756,14]
[393666166,1762895443619,-151.0,0.00039764,14]
[393666167,1762895443630,-151.0,0.00039764,14]
[393666168,1762895443639,-151.0,0.00039764,14]
[393666169,1762895443648,-151.0,0.00039764,14]
[393666170,1762895443657,-151.0,0.00039764,14]
[393666171,1762895443666,-151.0,0.00039764,14]
[393666172,1762895443675,-151.0,0.00039764,14]
[393666173,1762895443684,-151.0,0.00039764,14]
[393666174,1762895443694,-151.0,0.00039764,14]
[393666175,1762895443703,-151.0,0.00039764,14]
[393666176,1762895443712,-151.0,0.00039764,14]
[393666177,1762895443721,-151.0,0.00039764,14]
[393666178,1762895443731,-151.0,0.00039764,14]
[393666179,1762895443740,-151.0,0.00039764,14]
[393666180,1762895443749,-151.0,0.00039764,14]
[393666181,1762895443758,-151.0,0.00039764,14]
[393666182,1762895443767,-151.0,0.00039764,14]
[393666183,1762895443776,-151.0,0.00039764,14]
[393666184,1762895443785,-151.0,0.00039764,14]
[393666185,1762895443794,-151.0,0.00039764,14]
[393666186,1762895443804,-151.0,0.00039764,14]
[393666187,1762895443813,-151.0,0.00039764,14]
[393666188,1762895443822,-500.0,0.00039764,14]
[393666189,1762895443831,-500.0,0.00039764,14]
[393666190,1762895443841,-500.0,0.00039764,14]
[393666191,1762895443850,-181.98397772,0.00039764,14]
[393666192,1762895443859,-246.6482952,0.00039764,14]
[393666193,1762895443868,-217.91066044,0.00039764,14]
[393666194,1762895443878,-300.0,0.0003977,2]
[393666195,1762895443887,-300.0,0.00039772,2]
[393666197,1762895443896,-150.0,0.00039773,5]
[393666198,1762895443905,-300.0,0.00039799,2]
[393666199,1762895443914,-300.0,0.000398,2]
[393666200,1762895443923,-1608.0,0.000398,14]
[393666201,1762895443932,-200.0,0.00039816,2]
[393666202,1762895443941,-200.0,0.00039816,2]
[393666203,1762895443951,-200.0,0.00039816,2]
[393666204,1762895443960,-200.0,0.00039816,2]
[393666205,1762895443971,-200.0,0.00039816,2]
[393666206,1762895443990,-200.0,0.00039816,2]
[393666207,1762895443999,-500.0,0.00039816,2]
[393666208,1762895444008,-200.0,0.00039816,2]
[393666209,1762895444017,-200.0,0.00039816,2]
[393666210,1762895444027,-150.0,0.00039816,2]
[393666211,1762895444040,-200.0,0.00039816,2]
[393666212,1762895444050,-200.0,0.00039816,2]
[393666213,1762895444059,-200.0,0.00039816,2]
[393666214,1762895444067,-200.0,0.00039816,2]
[393666216,1762895444077,-200.0,0.00039816,2]
[393666217,1762895444086,-200.0,0.00039816,2]
[393666219,1762895444096,-300.0,0.00039829,2]
[393666221,1762895444106,-300.0,0.00039831,2]
[393666223,1762895444117,-500.0,0.00039834,20]
[393666225,1762895444128,-300.0,0.0003985,2]
[393666227,1762895444137,-300.0,0.0003989,2]
[393666230,1762895444146,-318.57990987,0.0003989,2]
[393666231,1762895444155,-2500.0,0.00039891,14]
[393666233,1762895444275,-537.64,0.000399,14]
[393666234,1762895444301,-2500.0,0.000399,14]
[393666235,1762895444311,-300.0,0.00039904,2]
[393666236,1762895444320,-2500.0,0.00039909,14]
[393666237,1762895444330,-300.0,0.00039914,2]
[393666238,1762895444339,-2195.43374237,0.00039918,14]
[393666239,1762895444437,-304.56625763,0.00039918,14]
[393666240,1762895444447,-1028.66619901,0.00039927,14]
[393666241,1762895444458,-597.945,0.00039927,14]
[393666242,1762895444470,-873.38880099,0.00039927,14]
[393666243,1762895444479,-300.0,0.00039931,2]
[393666244,1762895444489,-200.0,0.00039933,20]
[393666245,1762895444498,-2500.0,0.00039935,14]
[393666246,1762895444507,-200.0,0.00039938,20]
[393666247,1762895444516,-300.0,0.00039938,2]
[393666248,1762895444525,-200.0,0.00039942,20]
[393666249,1762895444534,-2500.0,0.00039944,14]
[393666250,1762895444543,-300.0,0.00039946,2]
[393666251,1762895444553,-500.0,0.00039953,2]
[393666252,1762895444562,-150.0,0.00039953,2]
[393666253,1762895444572,-2500.0,0.00039953,14]
[393666254,1762895444581,-196.239391,0.00039956,60]
[393666255,1762895444590,-151.955589,0.00039956,60]
[393666256,1762895444600,-185.278702,0.00039956,60]
[393666257,1762895444610,-2500.0,0.00039962,14]
[393666258,1762895444620,-2500.0,0.00039971,14]
[393666259,1762895444630,-300.0,0.00039974,2]
[393666260,1762895444639,-300.0,0.00039976,2]
[393666261,1762895444649,-300.0,0.00039978,2]
[393666262,1762895444658,-2500.0,0.00039979,14]
[393666263,1762895444667,-2500.0,0.00039988,14]
[393666264,1762895444676,-300.0,0.00039991,2]
[393666265,1762895444685,-2500.0,0.00039997,14]
[393666266,1762895444696,-500.0,0.00039999,20]
[393666267,1762895444705,-500.0,0.00039999,2]
[393666268,1762895444715,-500.0,0.00039999,2]
[393666269,1762895444724,-500.0,0.00039999,20]
[393666270,1762895444733,-500.0,0.00039999,20]
[393666271,1762895444742,-10000.0,0.0004,120]
[393666272,1762895444752,-1000.0,0.0004,7]
[393666273,1762895444761,-2500.0,0.00040006,14]
[393666274,1762895444771,-500.0,0.00040009,2]
[393666275,1762895444780,-500.0,0.00040009,2]
[393666276,1762895444789,-300.0,0.00040011,2]
[393666277,1762895444798,-500.0,0.00040012,30]
[393666278,1762895444807,-206.33121688,0.00040013,120]
[393666279,1762895444816,-2500.0,0.00040015,14]
[393666280,1762895444825,-500.0,0.00040015,30]
[393666281,1762895444835,-42.27262195,0.00040016,2]
[393666282,1762895444847,-257.72737805,0.00040016,2]
[393666283,1762895444856,-458.44517302,0.00040016,5]
[393666284,1762895444867,-1541.55482698,0.00040016,5]
[393666285,1762895444878,-858.33981118,0.00040016,5]
[393666286,1762895444962,-216.85045212,0.00039534,2]
[393666287,1762895444972,-216.85045212,0.00039862,2]
[393666288,1762895444981,-282.30485742,0.00040016,5]
[393666289,1762895444991,-325.58015431,0.0004002,30]
[393666290,1762895445002,-174.41984569,0.0004002,30]
[393666291,1762895445011,-500.0,0.00040023,30]
[393666292,1762895445021,-300.0,0.00040023,2]
[393666293,1762895445030,-22.17917922,0.00040023,14]
[393666294,1762895445057,-169.21,0.00039452,2]
[393666295,1762895445066,-177.09,0.00039452,2]
[393666296,1762895445075,-2477.82082078,0.00040023,14]
[393666297,1762895445091,-300.0,0.00040032,2]
[393666298,1762895445101,-2500.0,0.00040032,14]
[393666299,1762895445110,-300.0,0.00040038,2]
[393666300,1762895445121,-300.0,0.00040039,2]
[393666301,1762895445132,-500.0,0.00040039,30]
[393666302,1762895445141,-2500.0,0.00040041,14]
[393666303,1762895445151,-196.239391,0.00040042,60]
[393666304,1762895445160,-151.955589,0.00040042,60]
[393666305,1762895445169,-185.278702,0.00040042,60]
[393666306,1762895445178,-2500.0,0.0004005,14]
[393666307,1762895445188,-300.0,0.0004005,2]
[393666308,1762895445198,-300.0,0.00040053,2]
[393666309,1762895445207,-800.0,0.00040057,30]
[393666310,1762895445217,-2500.0,0.00040059,14]
[393666311,1762895445226,-72.55294865,0.00040067,14]
[393666313,1762895445929,-477.64,0.00039315,2]
[393666314,1762895445938,-368.46,0.00039315,2]
[393666315,1762895446256,-330.83,0.00039315,2]
[393666316,1762895446265,-498.74907323,0.00040067,14]
[393666317,1762895446277,-1928.69797812,0.00040067,14]
[393666318,1762895446287,-300.0,0.00040069,2]
[393666319,1762895446297,-2500.0,0.00040076,14]
[393666320,1762895446306,-2500.0,0.00040085,14]
[393666321,1762895446316,-252.91,0.00040085,14]
[393666322,1762895446327,-150.0,0.0004009,2]
[393666323,1762895446336,-320.63,0.000401,60]
[393666324,1762895446346,-300.0,0.00040114,2]
[393666325,1762895446356,-300.0,0.00040115,2]
[393666326,1762895446365,-500.0,0.00040116,30]
[393666327,1762895446375,-300.0,0.00040116,2]
[393666328,1762895446385,-216.85045212,0.00040116,2]
[393666329,1762895446395,-500.0,0.00040118,30]
[393666330,1762895446408,-500.0,0.0004012,30]
[393666331,1762895446418,-300.0,0.00040122,2]
[393666332,1762895446427,-196.239391,0.00040128,60]
[393666333,1762895446436,-151.955589,0.00040128,60]
[393666334,1762895446446,-185.278702,0.00040128,60]
[393666335,1762895446457,-300.0,0.00040128,2]
[393666336,1762895446467,-500.0,0.0004013,30]
[393666337,1762895446477,-3378.0,0.00040144,5]
[393666338,1762895446486,-500.0,0.00040146,30]
[393666339,1762895446496,-300.0,0.00040149,2]
[393666340,1762895446505,-300.0,0.00040152,2]
[393666341,1762895446516,-300.0,0.00040153,2]
[393666342,1762895446525,-800.0,0.00040158,30]
[393666343,1762895446535,-161.80636963,0.00040159,14]
[393666344,1762895446544,-500.0,0.00040161,30]
[393666345,1762895446553,-782.58553205,0.00040164,2]
[393666346,1762895446563,-782.585532,0.00040164,2]
[393666347,1762895446573,-782.585532,0.00040164,2]
[393666348,1762895446582,-782.585532,0.00040165,2]
[393666349,1762895446591,-782.585532,0.00040165,2]
[393666350,1762895446600,-782.585532,0.00040165,2]
[393666351,1762895446610,-204.18771477,0.00040165,2]
[393666352,1762895446619,-782.585532,0.00040165,2]
[393666353,1762895446630,-5170.32231685,0.00040165,2]
[393666354,1762895446639,-3218.23281891,0.00040166,15]
[393666355,1762895446649,-394.1854807,0.00040166,12]
[393666356,1762895446659,-199.89696611,0.00040166,2]
[393666357,1762895446668,-3746.95375097,0.00040166,15]
[393666358,1762895446678,-191.57459816,0.00040166,2]
[393666359,1762895446687,-153.07114398,0.00040166,15]
[393666360,1762895446696,-500.0,0.00040169,20]
[393666361,1762895446706,-1000.0,0.0004017,3]
[393666362,1762895446716,-500.0,0.0004017,3]
[393666363,1762895446726,-1000.0,0.0004017,3]
[393666364,1762895446736,-500.0,0.0004017,3]
[393666365,1762895446746,-1000.0,0.0004017,3]
[393666366,1762895446756,-500.0,0.0004017,3]
[393666367,1762895446766,-1408.03155104,0.0004017,3]
[393666368,1762895446775,-962.8021949,0.0004017,3]
[393666369,1762895446785,-1000.0,0.00040173,5]
[393666370,1762895446798,-500.0,0.00040174,30]
[393666373,1762895446807,-300.0,0.0004018,2]
[393666374,1762895446818,-500.0,0.00040189,30]
[393666375,1762895446827,-500.0,0.00040194,30]
[393666377,1762895446836,-500.0,0.000402,30]
[393666378,1762895446845,-150.0,0.000402,28]
[393666379,1762895446855,-235.35,0.000402,28]
[393666380,1762895446865,-184.12,0.000402,41]
[393666381,1762895446875,-200.0,0.000402,19]
[393666382,1762895446884,-173.43695303,0.00040205,30]
[393666383,1762895446893,-300.0,0.00040209,2]
[393666384,1762895446903,-196.239391,0.00040214,60]
[393666385,1762895446912,-151.955589,0.00040214,60]
[393666386,1762895446921,-185.278702,0.00040214,60]
[393666387,1762895446932,-151.22192366,0.00040225,2]
[393666388,1762895446942,-156.18107441,0.00040227,2]
[393666389,1762895446951,-300.0,0.00040238,2]
[393666390,1762895446960,-500.0,0.00040258,20]
[393666391,1762895446970,-500.0,0.00040258,20]
[393666392,1762895446979,-10049.2553766,0.00040259,2]
[393666393,1762895446988,-3743.32949143,0.00040259,2]
[393666415,1762895830918,250.0,0.00017,2]
[393666423,1762895972751,330.99,0.00013699,2]
[393666425,1762896308315,73398.63056115,0.00018,2]
[393666429,1762896355956,168.32,0.0001672,2]
[393666543,1762896486943,565.84422964,0.000135,2]
[393666556,1762896631962,-164.46490794,0.0001989,2]
[393666557,1762896631972,-300.0,0.00019989,2]
[393666558,1762896631981,-300.0,0.00019989,2]
[393666559,1762896631991,-1200.0,0.00019989,2]
[393666560,1762896631999,-14327.34683867,0.0001999,2]
[393666561,1762896632009,-330.99,0.00020187,2]
[393666562,1762896632018,-168.32,0.00020736,2]
[393666563,1762896632028,-420.0,0.00021766,2]
[393666564,1762896632037,-420.0,0.00021766,2]
[393666565,1762896632046,-1680.0,0.00021871,2]
[393666566,1762896632055,-195.0,0.00021879,2]
[393666567,1762896632068,-250.0,0.00021879,2]
[393666568,1762896632077,-587.0,0.00023701,2]
[393666569,1762896632087,-587.0,0.00023701,2]
[393666570,1762896632096,-461.0,0.00023929,2]
[393666571,1762896632105,-168.32,0.00024752,2]
[393666572,1762896632115,-823.0,0.00025808,2]
[393666573,1762896632124,-153.0,0.00025808,2]
[393666574,1762896632133,-330.99,0.00026676,2]
[393666575,1762896632146,-168.32,0.00028768,2]
[393666576,1762896632156,-3881.19619056,0.00030888,60]
[393666577,1762896632165,-160.31,0.00031467,30]
[393666578,1762896632174,-185.20226519,0.00032,120]
[393666579,1762896632183,-160.31,0.00032295,30]
[393666580,1762896632193,-999.0,0.00032336,3]
[393666582,1762896632202,-491.06,0.0003252,2]
[393666583,1762896632212,-168.32,0.00032784,2]
[393666585,1762896632221,-478.44322026,0.00032936,2]
[393666587,1762896632230,-150.0,0.00032941,2]
[393666589,1762896632239,-2730.94,0.0003298,2]
[393666591,1762896632249,-160.31,0.00033123,30]
[393666593,1762896632258,-1600.0,0.00033164,2]
[393666595,1762896632267,-185.0,0.00033164,2]
[393666597,1762896632276,-330.99,0.00033165,2]
[393666599,1762896632285,-785.12,0.00033317,2]
[393666601,1762896632294,-1000.0,0.0003351,2]
[393666603,1762896632304,-7509.82807738,0.0003351,2]
[393666606,1762896632316,-853.72192262,0.0003351,2]
[393666608,1762896632325,-6979.51,0.0003351,2]
[393666610,1762896632334,-582.86,0.00033546,2]
[393666611,1762896632343,-12824.12,0.00033547,2]
[393666613,1762896632352,-160.0,0.00033769,2]
[393666616,1762896632361,-577.97,0.000339,37]
[393666619,1762896632370,-183.242,0.000339,37]
[393666622,1762896632389,-22510.16,0.00033901,2]
[393666625,1762896632399,-160.31,0.00033951,30]
[393666627,1762896632408,-500.0,0.00033973,5]
[393666629,1762896632417,-1000.0,0.00034012,2]
[393666631,1762896632428,-496.40531223,0.00034019,2]
[393666633,1762896632438,-2500.0,0.00034022,2]
[393666635,1762896632447,-6298.0195,0.00034022,2]
[393666637,1762896632457,-500.0,0.00034025,5]
[393666640,1762896632470,-500.0,0.00034025,5]
[393666642,1762896632479,-500.0,0.00034025,5]
[393666644,1762896632488,-500.0,0.00034025,2]
[393666646,1762896632499,-500.0,0.00034025,5]
[393666647,1762896632508,-159.35999489,0.00034032,15]
[393666649,1762896632517,-173.52612822,0.00034032,2]
[393666651,1762896632527,-151.0,0.00034102,2]
[393666653,1762896632536,-151.0,0.00034102,2]
[393666655,1762896632545,-151.0,0.00034102,2]
[393666658,1762896632555,-151.0,0.00034102,2]
[393666659,1762896632564,-151.0,0.00034102,2]
[393666662,1762896632575,-151.0,0.00034102,2]
[393666664,1762896632584,-151.0,0.00034102,2]
[393666666,1762896632593,-151.0,0.00034102,2]
[393666668,1762896632604,-154.6939887,0.0003411,7]
[393666670,1762896632614,-244.9479838,0.0003411,7]
[393666672,1762896632623,-500.0,0.0003411,7]
[393666674,1762896632632,-500.0,0.0003411,7]
[393666675,1762896632642,-500.0,0.0003411,7]
[393666677,1762896632653,-500.0,0.0003411,7]
[393666679,1762896632663,-500.0,0.0003411,7]
[393666682,1762896632673,-500.0,0.0003411,7]
[393666684,1762896632683,-500.0,0.0003411,7]
[393666686,1762896632693,-500.0,0.0003411,7]
[393666688,1762896632704,-601.20609241,0.0003411,7]
[393666690,1762896632713,-500.0,0.0003411,7]
[393666692,1762896632722,-49809.3618943,0.00034112,3]
[393666694,1762896632732,-151.0,0.00034119,14]
[393666696,1762896632742,-190.87,0.00034121,20]
[393666698,1762896632751,-500.0,0.00034121,7]
[393666700,1762896632760,-500.0,0.00034121,20]
[393666702,1762896632769,-500.0,0.00034121,20]
[393666704,1762896632778,-168.67871598,0.00034121,7]
[393666706,1762896632787,-575.3252916,0.00034121,7]
[393666708,1762896632796,-5534.37354381,0.00034122,3]
[393666710,1762896632805,-38707.69593908,0.00034122,2]
[393666712,1762896632817,-1126.952,0.00034122,2]
[393666715,1762896632831,-625.92812456,0.00034122,2]
[393666717,1762896632842,-74421.244567,0.00034122,2]
[393666719,1762896632856,-885.27790424,0.00034122,2]
[393666721,1762896632867,-1743.76049974,0.00034122,2]
[393666724,1762896632880,-938.58626969,0.00034122,2]
[393666873,1762896637931,-3740.99577396,0.00034122,2]
[393666874,1762896637942,-1141.95869396,0.00034122,2]
[393666875,1762896637988,-285.06134771,0.00034122,2]
[393666876,1762896638000,-1877.37012887,0.00034122,2]
[393666877,1762896638044,-299.33161608,0.00034122,2]
[393666887,1762896639975,-320.87422204,0.00034122,2]
[393666888,1762896640088,-15474.0,0.00034122,2]
[393666889,1762896640149,-833.14395723,0.00034122,2]
[393666891,1762896640376,-285.68953332,0.00034122,2]
[393666892,1762896640392,-514.75,0.00034122,2]
[393666893,1762896640407,-3588.65850101,0.00034122,2]
[393667392,1762897633210,250.0,0.00017,2]
[393667431,1762897832190,-1009.19,0.00025,2]
[393667432,1762897832199,-478.44322026,0.00025251,2]
[393667433,1762897832209,-1009.19,0.000255,2]
[393667434,1762897832219,-1009.19,0.00026,30]
[393667435,1762897832228,-1009.19,0.000265,30]
[393667437,1762897832238,-1009.19,0.00027,30]
[393667438,1762897832247,-272.80097595,0.000275,2]
[393667439,1762897832257,-500.0,0.0003063,2]
[393667440,1762897832266,-185.20226519,0.00032,120]
[393667442,1762897832276,-198.35557658,0.00032,120]
[393667443,1762897832286,-210.10661975,0.00032,120]
[393667444,1762897832296,-1600.0,0.0003332,3]
[393667445,1762897832305,-1323.63,0.00033321,120]
[393667446,1762897832315,-200.0,0.0003342,2]
[393667447,1762897832324,-166.66,0.00033912,2]
[393667448,1762897832333,-150.99,0.00034021,2]
[393667449,1762897832343,-300.0,0.00034021,3]
[393667450,1762897832353,-1000.0,0.00034022,2]
[393667451,1762897832363,-4749.2721,0.00034022,2]
[393667452,1762897832372,-9307.1,0.00034048,2]
[393667453,1762897832384,-150.0,0.00034048,2]
[393667454,1762897832394,-150.0,0.00034048,120]
[393667455,1762897832404,-1000.0,0.00034118,2]
[393667456,1762897832413,-462.376,0.00034118,37]
[393667457,1762897832423,-183.243,0.00034118,37]
[393667458,1762897832432,-550.0,0.00034118,2]
[393667459,1762897832442,-21139.84136097,0.00034119,2]
[393667460,1762897832453,-609.63312281,0.00034119,2]
[393667461,1762897832561,-3903.9,0.00034119,2]
[393667484,1762897838145,-250.0,0.00033321,2]
[393667485,1762897838155,-59.60591375,0.00034119,2]
[393667486,1762897838205,-2396.3,0.00034119,2]
[393667487,1762897838216,-10965.33537185,0.00034119,2]
[393667488,1762897838228,-394.14575585,0.00034119,2]
[393667489,1762897838240,-1298.01987285,0.00034119,2]
[393667527,1762897840175,-803.74330137,0.00034119,2]
[393667528,1762897840258,-112224.38508405,0.00034119,2]
[393667529,1762897840268,-1099.02113,0.00034122,2]
[393667530,1762897840279,-500.0,0.00034173,5]
[393667531,1762897840289,-500.0,0.00034173,5]
[393667532,1762897840299,-500.0,0.00034173,5]
[393667533,1762897840309,-524.46659852,0.00034173,5]
[393667534,1762897840319,-423.95,0.00034416,14]
[393667535,1762897840330,-893.78,0.00034423,30]
[393667536,1762897840340,-1000.0,0.00034424,2]
[393667537,1762897840350,-6226.21139473,0.00034609,2]
[393667538,1762897840359,-423.95,0.0003469,14]
[393667539,1762897840369,-300.0,0.00034691,2]
[393667540,1762897840379,-1000.0,0.00034721,5]
[393667541,1762897840392,-160.31,0.00034779,30]
[393667542,1762897840401,-150.0,0.00034896,2]
[393667543,1762897840411,-423.95,0.00034964,14]
[393667544,1762897840420,-166.66,0.00035031,2]
[393667545,1762897840430,-189.24,0.00035202,120]
[393667546,1762897840439,-797.13,0.00035211,2]
[393667547,1762897840448,-423.95,0.00035238,14]
[393667548,1762897840458,-720.39703715,0.00035268,5]
[393667549,1762897840467,-500.0,0.00035309,5]
[393667550,1762897840480,-423.95360344,0.00035512,14]
[393667551,1762897840489,-159.35999485,0.00035789,15]
[393667552,1762897840499,-151.0,0.00035877,14]
[393667553,1762897840508,-402.72770412,0.00035879,15]
[393667554,1762897840518,-1806.91,0.0003588,20]
[393667555,1762897840527,-500.0,0.0003588,7]
[393667556,1762897840536,-171274.566677,0.0003588,3]
[393667557,1762897840545,-1806.91,0.00035889,20]
[393667558,1762897840555,-1806.91,0.00035889,20]
[393667559,1762897840564,-1806.91,0.00035889,20]
[393667560,1762897840573,-420000.0,0.0003589,2]
[393667561,1762897840582,-113860.31249704,0.0003589,2]
[393667562,1762897840592,-339.0,0.00035934,3]
[393667563,1762897840601,-609.83676538,0.00035973,5]
[393667564,1762897840611,-500.0,0.00035973,5]
[393667565,1762897840620,-500.0,0.00035973,5]
[393667566,1762897840630,-160.90585572,0.00035973,5]
[393667567,1762897840642,-247.04253758,0.00035973,5]
[393667568,1762897840651,-150.0,0.00035993,2]
[393667569,1762897840660,-150.0,0.00035993,2]
[393667570,1762897840670,-1806.91,0.00035999,20]
[393667571,1762897840680,-231484.77454323,0.00036,2]
[393667572,1762897840689,-10711.87011921,0.00036,2]
[393667573,1762897840699,-1275.51,0.00036,30]
[393667574,1762897840709,-398.31,0.00036,14]
[393667575,1762897840718,-151.0,0.00036,31]
[393667576,1762897840728,-151.0,0.00036,30]
[393667577,1762897840738,-151.0,0.00036,30]
[393667578,1762897840747,-151.0,0.00036,30]
[393667579,1762897840756,-151.0,0.00036,30]
[393667580,1762897840769,-5000.0,0.0003601,2]
[393667581,1762897840779,-236.062878,0.0003601,31]
[393667582,1762897840789,-300.0,0.00036061,2]
[393667583,1762897840798,-4927.4,0.00036081,2]
[393667584,1762897840808,-1099.02114,0.00036122,2]
[393667585,1762897840818,-166.66,0.00036151,2]
[393667586,1762897840827,-2411.38,0.00036171,2]
[393667587,1762897840838,-500.0,0.0003618,30]
[393667588,1762897840847,-360.14322656,0.00036241,2]
[393667589,1762897840858,-1994.07698681,0.00036251,30]
[393667590,1762897840871,-255.59,0.00036261,2]
[393667591,1762897840880,-158.33834392,0.00036271,2]
[393667592,1762897840891,-5000.0,0.00036334,2]
[393667593,1762897840901,-2532.36,0.00036336,2]
[393667594,1762897840911,-5000.0,0.00036371,2]
[393667595,1762897840920,-700.0,0.00036389,30]
[393667596,1762897840930,-5000.0,0.00036393,2]
[393667597,1762897840939,-1000.684,0.00036399,2]
[393667598,1762897840948,-150.15,0.00036421,2]
[393667599,1762897840958,-385.03,0.00036424,2]
[393667600,1762897840967,-12500.0,0.00036431,2]
[393667601,1762897840977,-506.46253438,0.00036451,30]
[393667602,1762897840987,-4550.99,0.00036482,2]
[393667603,1762897840997,-1001.16361588,0.00036521,5]
[393667604,1762897841007,-5000.0,0.00036521,2]
[393667605,1762897841017,-797.13,0.00036531,2]
[393667606,1762897841027,-1806.91,0.00036576,20]
[393667607,1762897841037,-1657.0,0.00036579,2]
[393667608,1762897841046,-5000.0,0.00036591,2]
[393667609,1762897841056,-581.77,0.00036636,2]
[393667610,1762897841065,-200.0,0.00036669,2]
[393667611,1762897841075,-500.0,0.00036673,5]
[393667612,1762897841084,-12500.0,0.00036696,2]
[393667613,1762897841093,-2000.0,0.000367,2]
[393667614,1762897841103,-500.0,0.00036749,30]
[393667615,1762897841113,-700.0,0.00036766,30]
[393667616,1762897841123,-500.0,0.00036779,30]
[393667617,1762897841132,-500.0,0.00036805,30]
[393667618,1762897841141,-500.0,0.00036842,30]
[393667619,1762897841151,-700.0,0.00036883,30]
[393667620,1762897841160,-25000.0,0.00036928,2]
[393667621,1762897841169,-1466.71,0.00036953,2]
[393667622,1762897841178,-500.0,0.00036973,5]
[393667623,1762897841189,-500.0,0.0003698,5]
[393667624,1762897841198,-502.15158628,0.0003698,5]
[393667625,1762897841208,-500.0,0.0003698,5]
[393667626,1762897841217,-500.0,0.0003703,30]
[393667627,1762897841226,-217.58,0.00037059,2]
[393667628,1762897841236,-500.0,0.00037084,30]
[393667629,1762897841246,-500.0,0.00037113,30]
[393667630,1762897841255,-700.0,0.00037153,30]
[393667631,1762897841267,-700.0,0.00037171,30]
[393667632,1762897841276,-500.0,0.00037207,30]
[393667633,1762897841285,-500.0,0.00037237,30]
[393667634,1762897841295,-500.0,0.00037239,30]
[393667635,1762897841305,-158.33834391,0.00037245,2]
[393667636,1762897841314,-159.35999485,0.00037248,15]
[393667637,1762897841324,-166.66,0.0003727,2]
[393667638,1762897841334,-500.0,0.00037279,30]
[393667639,1762897841343,-1275.51,0.000373,30]
[393667640,1762897841353,-398.31,0.000373,14]
[393667641,1762897841363,-500.0,0.00037301,30]